Cogmind - Beta 15 @@@ ROGUE MODE // 2025.05.19 @ 22:04:37 Player: jumpy Result: Self-destructed Performance ------------- Evolutions (1) 500 Regions Visited (2) 400 Robots Destroyed (30) 150 Value Destroyed (643) 643 Prototype IDs (1) 20 Alien Tech Used (0) 0 Bonus (0) 0 TOTAL SCORE: 1713 Bonus ------- None Cogmind --------- Core Integrity 274/400 Matter 220/300 Energy 280/280 System Corruption 4% Temperature Cool (0) Movement Core (250) Ox4 Location -9/Materials Parts ------- > --- POWER (1) -------- Heavy Ion Engine > --- PROPULSION (2) --- (None) > --- UTILITY (4) ------ Small Storage Unit Targeting Computer > --- WEAPON (2) ------- Mini Grenade Launcher > --- INVENTORY (8) ---- Ion Engine Compact Wheel Compact Wheel Seismic Detector Small Laser Mining Laser Peak State ------------ > --- POWER ------------ Heavy Ion Engine > --- PROPULSION ------- Light Treads > --- UTILITY ---------- Small Storage Unit Improved Terrain Scanner Targeting Computer > --- WEAPON ----------- Small Laser Mini Grenade Launcher > --- INVENTORY -------- Ion Engine Compact Wheel Compact Wheel Seismic Detector Small Laser Mining Laser [Rating: 12] Favorites ----------- Power Ion Engine Engine Ion Engine Propulsion Light Treads Treads Light Treads Utility Small Storage Unit Device Seismic Detector Storage Small Storage Unit Processor Targeting Computer Weapon Small Laser Energy Gun Small Laser Ballistic Gun Light Assault Rifle Ballistic Cannon Light Cannon Launcher Mini Grenade Launcher Build | -11 -10 -9 ------- Run | Yrd Mat Mat Slots Evolved 2 | . . 2 Power . | . . . Propulsion . | . . . Utility 2 | . . 2 Weapon . | . . . Parts Attached 17 | 8 3 6 Power 3 | 1 1 1 Engine 3 | 1 1 1 Core . | . . . Reactor . | . . . Propulsion 2 | 2 . . Treads 2 | 2 . . Leg . | . . . Wheel . | . . . Hover . | . . . Flight . | . . . Utility 4 | 2 . 2 Device 2 | 1 . 1 Storage 1 | 1 . . Processor 1 | . . 1 Hackware . | . . . Protection . | . . . Artifact . | . . . Weapon 8 | 3 2 3 Energy Gun 5 | 2 2 1 Energy Cannon . | . . . Ballistic Gun 1 | 1 . . Ballistic Cannon 1 | . . 1 Launcher 1 | . . 1 Special Weapon . | . . . Impact Weapon . | . . . Slashing Weapon . | . . . Piercing Weapon . | . . . Special Melee Weapon . | . . . Unidentified Prototypes 1 | . . 1 Parts Lost 5 | . . 5 Power . | . . . Propulsion 2 | . . 2 Utility 2 | . . 2 Weapon 1 | . . 1 Highest Loss Streak 3 | . . 3 To Critical Strikes . | . . . Average Backups 6 | 3 7 6 Power . | . 1 1 Propulsion 1 | 1 2 2 Utility 1 | . 2 1 Weapon 1 | . 1 2 Tool/Special . | . . . Unused Backups 6 | 1 . 5 Power 1 | . . 1 Propulsion 2 | . . 2 Utility 2 | 1 . 1 Weapon 1 | . . 1 Tool/Special . | . . . Average Slot Usage (%) 95 | . 100 91 Engine 12 | . 14 11 Treads 22 | . 28 18 Device 16 | . 14 18 Storage 12 | . 14 11 Processor 6 | . . 11 Energy Gun 22 | . 28 17 Peak Build Rating 12 | 7 8 12 Average Rating 8 | 5 7 10 On Entrance 5 | . 7 8 Naked Turns . | . . . Heaviest Build 16 | 13 13 16 Greatest Support 40 | 40 40 40 Greatest Overweight (x) 4 | . . 4 Average Overweight (x) . | . . . Largest Inventory Capacity 8 | 8 8 8 Average Capacity 7 | 7 8 8 Most Carried 8 | 6 8 7 Average Carried 6 | 3 7 6 Final Capacity 8 | 8 8 8 Final Carried 8 | 6 8 6 Class Distribution -------------------- 97% | Mutant Dominant Class ---------------- Mutant | -10/Materials Mutant | -9/Materials Resources | -11 -10 -9 ----------- Run | Yrd Mat Mat Matter Collected 372 | 280 34 58 Remotely . | . . . Salvage Created 827 | 164 389 274 Parts 71 | 18 36 17 Haulers Intercepted 1 | . . 1 Recyclers Shooed 1 | 1 . . Parts Field Recycled . | . . . Retrieved Matter . | . . . Parts Self-Destructed . | . . . Prevented . | . . . Kills | -11 -10 -9 ------- Run | Yrd Mat Mat Combat Hostiles Destroyed 20 | . 14 6 Guns 18 | . 14 4 Cannons 1 | . . 1 AOE 1 | . . 1 Classes Destroyed 9 | 3 2 4 Worker 2 | 2 . . Builder 1 | . . 1 Tunneler 5 | 5 . . Hauler 1 | . . 1 Recycler 1 | 1 . . Swarmer 6 | . 6 . Grunt 11 | . 8 3 Brawler 1 | . . 1 Sentry 2 | . . 2 Best Kill Streak 4 | 3 3 4 Combat Bots Only 3 | . 3 2 Max Kills in Single Turn 1 | 1 1 1 Gunslinging . | . . . Exploded 1 | . . 1 Melee . | . . . Uniques/NPCs Destroyed . | . . . Combat | -11 -10 -9 -------- Run | Yrd Mat Mat Hostile Shots Fired 97 | . 63 34 Missed 22 | . 13 9 Hits 75 | . 50 25 Melee 2 | . . 2 Projectile 73 | . 50 23 Damage Taken 1012 | . 526 486 Core 264 | . 138 126 Absorbed by Shields . | . . . Core Remaining (%) 72 | 100 44 . Volleys Fired 86 | 20 37 29 Largest 2 | 2 2 2 Hottest 80 | 80 80 80 Shots Fired 163 | 40 74 49 Gun 148 | 40 74 34 Cannon 7 | . . 7 Launcher 8 | . . 8 Special . | . . . Kinetic 7 | . . 7 Thermal 148 | 40 74 34 Explosive 8 | . . 8 Electromagnetic . | . . . Robot Hit Streak 10 | 10 5 10 Robot Miss Streak 4 | 3 4 2 Penetration Max . | . . . Secondary Targets 1 | . . 1 Max Gunslinging Chain 1 | . . 1 Shots Hit Robots 103 | 25 45 33 Core Hits 45 | 9 24 12 Critical Kills . | . . . Critical Parts Destroyed . | . . . Critical Strikes . | . . . Melee Attacks . | . . . Impact . | . . . Slashing . | . . . Piercing . | . . . Sneak Attacks . | . . . Combat Hostiles . | . . . Follow-up Attacks . | . . . Damage Inflicted 1284 | 285 500 499 Guns 1058 | 285 499 274 Cannons 53 | . . 53 Explosions 161 | . . 161 Melee . | . . . Ramming 12 | . 1 11 Kinetic 53 | . . 53 Thermal 1058 | 285 499 274 Explosive 161 | . . 161 Electromagnetic . | . . . Impact . | . . . Slashing . | . . . Piercing . | . . . Highest Corruption 4 | . 3 4 Average Corruption 3 | . 2 4 Corruption Purged . | . . . Corruption Blocked . | . . . Effects 7 | . 4 3 Message Errors 4 | . 2 2 Matter Fused 1 | . 1 . Heat Flow Errors 2 | . 1 1 Overload Shots . | . . . Overflow Damage 14 | . . 14 Projectiles . | . . . Explosions 14 | . . 14 Melee . | . . . Knockbacks . | . . . Impact . | . . . Kinetic . | . . . Secondary . | . . . Self-Inflicted Damage 140 | . . 140 Shots 7 | . . 7 Rammed 6 | . 2 4 Targets Rammed 7 | . 2 5 Kicked . | . . . Crushed 1 | . . 1 Highest Temperature 211 | 54 144 211 Average Temperature 46 | 22 54 51 Received Heat Transfer 336 | . 225 111 Effects 1 | . . 1 Interference 1 | . . 1 Siege Activations . | . . . Martial Activations . | . . . Shielding Activations . | . . . Robots Disrupted . | . . . Combat Hostiles . | . . . Robots Corrupted . | . . . Combat Hostiles . | . . . Parts Fried . | . . . Impact Corruptions . | . . . Robots Melted . | . . . Combat Hostiles . | . . . Parts Melted 2 | . 2 . Heat Transferred 2375 | 625 1125 625 Parts Sabotaged . | . . . Parts Stolen . | . . . Parts Stripped . | . . . Power Chain Reactions . | . . . Alert | -11 -10 -9 ------- Run | Yrd Mat Mat Maximum Alert Level . | . . . Low Security (%) 100 | 100 100 100 Level 1 . | . . . Level 2 . | . . . Level 3 . | . . . Level 4 . | . . . Level 5 . | . . . High Security . | . . . Max Security . | . . . Peak Influence 183 | 10 183 79 Initial 73 | . . 73 Average 48 | 1 103 25 Influence Increases 638 | 40 375 223 Destroy 0b10 Robot/C 400 | . 280 120 Destroy 0b10 Robot/NC 50 | 40 . 10 Destroy Leader 82 | . 50 32 Disable Machine 30 | . . 30 Destroy Structure 16 | . . 16 Lose Combat Pursuer 60 | . 45 15 Influence Decreases 583 | 40 200 343 Entered New Map 102 | . . 102 Time Decay 431 | 40 200 191 Lost Part 50 | . . 50 Squads Dispatched 4 | . 3 1 Investigation 1 | . 1 . Extermination . | . . . Reinforcement 3 | . 2 1 Assault . | . . . Garrison . | . . . Intercept . | . . . Searches Triggered . | . . . Construction Impeded . | . . . Haulers Reinforced . | . . . Active Scanning Responses . | . . . Cargo Convoy Interrupts . | . . . Stealth | -11 -10 -9 --------- Run | Yrd Mat Mat Distress Signals 6 | . 3 3 Communications Jammed . | . . . Distress Signals . | . . . Times Spotted 41 | . 25 16 Peak Tracking Total 6 | . 6 5 Tactical Retreats 3 | . 2 1 Traps | -11 -10 -9 ------- Run | Yrd Mat Mat Traps Triggered 3 | . 3 . Indirectly . | . . . Trap Hack Attempts . | . . . Triggered . | . . . Disarmed . | . . . Reprogrammed . | . . . Reused . | . . . Traps Extracted . | . . . Installed . | . . . Triggered . | . . . Machines | -11 -10 -9 ---------- Run | Yrd Mat Mat Machines Disabled 2 | . . 2 Max in Single Turn 1 | . . 1 Machines Repaired . | . . . Machines Dismantled . | . . . Machines Sabotaged . | . . . Overloaded Fab Kills . | . . . Hacking | -11 -10 -9 --------- Run | Yrd Mat Mat Machines Accessed . | . . . Terminals . | . . . Fabricators . | . . . Repair Stations . | . . . Recycling Units . | . . . Scanalyzers . | . . . Garrison Access . | . . . Total Hacks . | . . . Successful . | . . . Failed . | . . . Catastrophic . | . . . Database Lockouts . | . . . Manual . | . . . Terminals . | . . . Fabricators . | . . . Repair Stations . | . . . Recycling Units . | . . . Scanalyzers . | . . . Garrison Access . | . . . Terminal Hacks . | . . . Fabricator Hacks . | . . . Repair Station Hacks . | . . . Recycling Unit Hacks . | . . . Scanalyzer . | . . . Garrison Access Hacks . | . . . Unauthorized Hacks . | . . . Terminals . | . . . Fabricators . | . . . Repair Stations . | . . . Recycling Units . | . . . Scanalyzers . | . . . Garrison Access . | . . . Data Cores Recovered . | . . . Used . | . . . Hacking Detections . | . . . Full Trace Events . | . . . Feedback Events . | . . . Feedback Blocked . | . . . Robot Schematics Acquired . | . . . Robots Built . | . . . Authchips . | . . . Time . | . . . Total Robot Build Rating . | . . . Part Schematics Acquired . | . . . Parts Built . | . . . Authchips . | . . . Time . | . . . Total Part Build Rating . | . . . Parts Repaired . | . . . Time . | . . . Parts Recycled . | . . . Recycled Matter . | . . . Retrieved Matter . | . . . Retrieved Components . | . . . Parts Scanalyzed . | . . . Part Schematics Acquired . | . . . Parts Damaged . | . . . Bothacking | -11 -10 -9 ------------ Run | Yrd Mat Mat Used RIF Installer . | . . . Robots Hacked . | . . . Non-combat . | . . . Combat . | . . . Robot Hacks Applied . | . . . Relay Couplers Released . | . . . Fabnet Peak Effective % . | . . . Robots Rewired . | . . . Allies Hacked . | . . . Hacks Repelled . | . . . Allies | -11 -10 -9 -------- Run | Yrd Mat Mat Total Allies . | . . . Largest Group . | . . . Highest-Rated Group . | . . . Highest-Rated Ally . | . . . Total Orders . | . . . Ally Attacks . | . . . Total Damage . | . . . Kills . | . . . Allies Corrupted . | . . . Allies Melted . | . . . Intel | -11 -10 -9 ------- Run | Yrd Mat Mat Active Infowar (turns) 1227 | 131 498 598 Terrain 597 | . . 597 Seismic 1139 | 131 498 510 Robot Analysis Total . | . . . Derelict Logs Recovered . | . . . Drone Launches . | . . . Drone Recoveries . | . . . Exploration | -11 -10 -9 ------------- Run | Yrd Mat Mat Turns Passed 1414 | 256 498 660 Spaces Moved 454 | 113 214 127 Core 24 | 3 . 21 Treads 430 | 110 214 106 Legs . | . . . Wheels . | . . . Hover . | . . . Flight . | . . . Fastest Speed 50 | 50 160 160 Average Speed 163 | 157 160 174 Slowest Speed 250 | 160 160 250 Overloaded Moves . | . . . Propulsion Burnouts . | . . . Robots Hopped . | . . . Potential Cave-ins . | . . . Cave-ins Triggered . | . . . Exploration Rate (%) 22 | 5 46 17 Regions Visited 2 Branch Regions . Pre-discovered Areas . | . . . Known Exits Taken . | . . . Unknown Exits Taken 2 | 1 1 . Scrap Searched . | . . . Spaces Dug . | . . . Terrain Destroyed 16 | . . 16 Melee . | . . . Projectile . | . . . AOE 16 | . . 16 Terrain Rammed . | . . . Walls Destroyed . | . . . Machines Disabled . | . . . Actions | -11 -10 -9 --------- Run | Yrd Mat Mat Total 954 | 148 297 509 Wait 379 | . 37 342 Move 453 | 112 214 127 Hop . | . . . Pick Up 9 | 7 2 . Fast Attach 7 | 7 . . Attach 2 | . . 2 Detach . | . . . Swap 8 | 1 3 4 Drop 4 | 1 3 . Fire 86 | 20 37 29 Melee . | . . . Ram 1 | . . 1 Kick . | . . . Crush 5 | . 1 4 Escape Stasis . | . . . Rewire . | . . . Trap . | . . . Miscellaneous . | . . . Route ------- -11/Scrapyard -10/Materials (discovered 2 exits: [*Mat] / [*Min]) -9/Materials History --------- Turn | Location | Event 29 | -11/Scrapyard | Discovered new exit (range 15) 257 | -11/Scrapyard | Entered Materials 315 | -10/Materials | Build established: Mutant 433 | -10/Materials | Discovered new exit (range 11) 580 | -10/Materials | Discovered new exit (range 8) 751 | -10/Materials | Core integrity fell below 50% 755 | -10/Materials | Entered another Materials area 755 | -9/Materials | Evolved 2 slots: Utility x2 1384 | -9/Materials | Lost 3 parts (1n1u1w) 1415 | -9/Materials | Self-destructed Last Messages --------------- 01327_ Identified Hvy. Ion Engine. 01336_ System corrupted: Heat flow error (+233). 01337_ Overheating: System interference. 01337_ Sml. Laser temporarily disabled. 01337_ Acquired Mni. Grenade Launcher. 01341_ U-05 Engineer destroyed. 01341_ Electrolysis Chamber disabled. 01344_ Lgt. Treads destroyed. 01347_ Sml. Laser destroyed. 01347_ Destroyed Sml. Laser. 01353_ Imp. Terrain Scanner destroyed. 01355_ The unstable cave ceiling collapses. 01358_ Y-45 Defender destroyed. 01361_ SV5#SFN=>=FZIH MQ09=/T|Z|WG|FH|#VEA%H 01361_ The unstable cave ceiling collapses. 01379_ K-01 Serf collects debris. 01393_ Slammed into W-16 Scout. 01393_ Destabilizing: System interference. 01393_ Mni. Grenade Launcher temporarily disabled. 01393_ Targeting Computer temporarily disabled. Map ----- +----------------------------------------------------+ | | | | | | | | | | | | | | | | | | | | | | | | | | | | | ###?#????##??????????????????? | | ?????? ?? ???????????????? | | ?????? "??????? ?????????? | | ?????? "???? ????????????? | | ?? ??? "?????????????????? | | #+##??? ? ?????????????????? | | # +????? ??#?????????????? | | # # ??? ?????????????????? | | # #######+##########+##?????? | | ####??? | | #??? | | %! @#??? | | !!#= # ####+#### #??? | | % #? ?# #??? | | # [ = # "S ## #??? | | # # """ ## #??? | | % # """# "" + #??? | | ## "" * R"# ####??? | | ## """ """# !#??#??? | | %# ## #####??#??? | | % ###############?#???#????? | | "% ] #??#?##????#?# | | ######### #?###??#????#? | | #??#?#??# #?##???????#?? | | #####??#??### ###########??? | | #?########### #?? """ ?#???? | | ### # # ?""""" ????? | | ?## # #? """"" ????? | | ??# # # """"" #???? | | ??# # # """ ##??? | | ### # # #???? | | ### + #???? | | ??# # # ##??? | | #?# # # #???? | | ############# ##########???? | | # #??#?????#??? | +----------------------------------------------------+ Best States ------------- Heat Dissipation 28 Energy Generation 14 Energy Capacity 280 Matter Stores 300 Matter Capacity 300 Sight Range 16 Terrain Scan Range 16 Terrain Scan Density 10 Evasion (%) 40 Targeting Accuracy 5 Recoil Reduction 2 Item Schematics ----------------- None Robot Schematics ------------------ None Fabricated ------------ Nothing Repaired ---------- Nothing Alien Tech Used ----------------- None Achievements -------------- None Challenges ------------ None Game ------ Seed DrainedEfficiencyShield Manual? 0 Play Time 00:07:03 Cumulative 103.2 hours Start 2025.05.19 @ 21:59:29 End 2025.05.19 @ 22:04:37 Sessions 1 Manual Loads 0 Difficulty Rogue Special Mode None Game No. 271 Rogue 271 Adventurer 0 Explorer 0 Win Type - Total 2 Types 2/0/0/0/0/0/0/0/0/0 Lore% 50 Gallery% 49 Achievement% 42 Wizard Run 0 Options --------- Layout 0 ASCII 0 Keyboard 0 Movement Numpad Keybinds 0 Fullscreen 2 Font 18/Terminus Map View 76x50 Zoom Use 0% Tactical HUD 1 Map Filters NONE Filters NONE Steam 1 RUN: 76567075-9b44-4b7d-a6d5-f6d3960f9f0d